bitfinex/quotes_ETHUSD_20250705
["timestamp","ask_amount","ask_price","bid_price","bid_amount"]
[1751707618591,3.97852668,2513.5,2513.3,8.2124]
[1751707618786,4.97770287,2513.6,2513.3,8.2124]
[1751707619694,4.92907561,2513.7,2513.3,8.2124]
[1751707619878,4.73067561,2513.7,2513.3,8.014]
[1751707620205,4.73067561,2513.7,2513.4,0.1984]
[1751707621085,0.7524,2513.7,2513.4,0.1984]
[1751707622170,0.3692268,2513.6,2513.4,0.1984]
[1751707622498,0.7524,2513.7,2513.4,0.1984]
[1751707622881,4.17637544,2513.9,2513.4,4.17699193]
[1751707623073,0.36928044,2513.8,2513.4,4.17699193]
[1751707623678,0.36928044,2513.8,2513.5,3.97850223]
[1751707623918,0.36928044,2513.7,2513.6,11.99328636]
[1751707624100,5.00558409,2514.2,2513.7,0.1984]
[1751707624417,0.36940432,2514.1,2513.7,4.17659225]
[1751707624582,0.36940432,2514.1,2513.8,3.97792973]
[1751707624785,0.36940432,2514.1,2514.0,0.1984]
[1751707630622,3.97790214,2513.9,2513.7,8.2134]
[1751707630825,0.36940432,2513.8,2513.7,8.2134]
[1751707632700,0.37094398,2513.8,2513.7,8.2134]
[1751707633523,0.37094398,2513.8,2513.7,14.23887437]
[1751707634332,12.1870113,2514.7,2514.3,3.97720535]
[1751707634627,0.37126614,2514.6,2514.4,8.015]
[1751707634823,0.37126614,2514.5,2514.4,11.99209195]
[1751707635294,0.37126614,2514.5,2514.4,12.19049195]
[1751707638500,0.37079924,2514.5,2514.4,12.19049195]
[1751707640427,0.3706192,2514.6,2514.5,3.97693378]
[1751707640928,0.37061919,2514.6,2514.5,3.97693378]
[1751707644312,0.0436113,2514.7,2514.6,3.97677563]
[1751707644637,0.0436113,2514.7,2514.6,12.18817563]
[1751707645128,0.41410845,2514.7,2514.6,12.18817563]
[1751707645332,0.0436113,2514.7,2514.6,12.18817563]
[1751707645703,0.41410845,2514.7,2514.6,12.18817563]
[1751707645904,0.41410845,2514.7,2514.6,13.96207727]
[1751707646647,0.41410845,2514.7,2514.6,9.98530164]
[1751707647016,0.0436113,2514.7,2514.6,9.98530164]
[1751707648217,0.0436113,2514.7,2514.6,0.1984]
[1751707648432,0.41410845,2514.7,2514.6,8.2104]
[1751707648731,0.41410845,2514.7,2514.6,8.012]
[1751707648732,4.39072593,2514.7,2514.6,8.012]
[1751707649743,0.41410845,2514.7,2514.6,8.012]
[1751707650339,0.41410845,2514.7,2514.4,8.2124]
[1751707650937,0.41410845,2514.7,2514.4,12.1894877]
[1751707651842,0.41410845,2514.7,2514.5,3.9768729]
[1751707652041,0.41410845,2514.7,2514.6,3.97677563]
[1751707652213,0.41410845,2514.7,2514.6,4.17517563]
[1751707652616,0.41410845,2514.7,2514.6,0.1984]
[1751707652816,0.0436113,2514.7,2514.6,0.1984]
[1751707653224,0.41410845,2514.7,2514.6,0.1984]
[1751707653430,0.0436113,2514.7,2514.6,0.1984]
[1751707654078,0.41410845,2514.7,2514.6,0.1984]
[1751707654264,0.0436113,2514.7,2514.6,0.1984]
[1751707654421,0.41410845,2514.7,2514.6,0.1984]
[1751707654620,0.0436113,2514.7,2514.6,0.1984]
[1751707655058,0.41410845,2514.7,2514.6,0.1984]
[1751707655226,0.0436113,2514.7,2514.6,0.1984]
[1751707655426,0.41410845,2514.7,2514.6,0.1984]
[1751707656256,0.0436113,2514.7,2514.6,0.1984]
[1751707656462,0.41449436,2514.7,2514.6,0.1984]
[1751707659124,4.39111184,2514.7,2514.6,0.1984]
[1751707659456,0.41469637,2514.7,2514.6,0.1984]
[1751707662654,4.39131385,2514.7,2514.6,0.1984]
[1751707662854,0.41469637,2514.7,2514.6,0.1984]
[1751707663458,0.41469637,2514.7,2514.6,1.0035]
[1751707663657,0.41469637,2514.7,2514.6,6.27971862]
[1751707667170,0.41469637,2514.7,2514.6,14.29371862]
[1751707671686,0.41570039,2514.7,2514.6,14.29371862]
[1751707676989,0.0436113,2514.7,2514.6,14.29371862]
[1751707677199,0.41562498,2514.7,2514.6,14.29371862]
[1751707679404,0.0436113,2514.7,2514.6,14.29371862]
[1751707688418,0.0436113,2514.7,2514.6,24.84371862]
[1751707688709,0.37180935,2515.1,2515.0,4.73924314]
[1751707688880,0.0436113,2515.2,2515.0,13.85995638]
[1751707689077,0.0436113,2515.2,2515.1,3.97598505]
[1751707689301,0.41532953,2515.2,2515.1,4.0157449]
[1751707690312,0.0436113,2515.2,2515.1,4.0157449]
[1751707690497,0.0436113,2515.2,2515.1,6.19696638]
[1751707691414,0.0436113,2515.2,2515.1,6.15720653]
[1751707691590,0.0436113,2515.2,2515.1,6.19696638]
[1751707692314,0.0436113,2515.2,2515.1,6.15720653]
[1751707696790,0.0436113,2515.2,2515.1,2.18122148]
[1751707697025,0.0436113,2515.2,2515.1,8.009]
[1751707697810,0.0436113,2515.2,2515.1,11.98498505]
[1751707703149,0.0436113,2515.2,2515.1,12.80068505]
[1751707707240,0.0436113,2515.2,2515.1,13.35068505]
[1751707708339,0.0436113,2515.2,2515.1,28.09068505]
[1751707708532,0.0436113,2515.2,2515.1,31.31720501]
[1751707709319,0.0436113,2515.7,2515.6,4.74879478]
[1751707709537,0.0436113,2515.7,2515.6,12.75779478]
[1751707709737,0.0436113,2515.7,2515.6,12.95619478]
[1751707712438,0.0436113,2515.7,2515.6,13.50619478]
[1751707712636,0.0436113,2515.7,2515.6,25.25434673]
[1751707718950,1e-08,2515.7,2515.6,29.99434673]
[1751707731473,1e-08,2515.7,2515.6,21.98534673]
[1751707731645,1e-08,2515.7,2515.6,31.16074673]
[1751707732168,1e-08,2515.7,2515.6,21.21174673]
[1751707732363,1e-08,2515.7,2515.6,29.21674673]
[1751707738366,1e-08,2515.7,2515.6,21.21174673]
[1751707738552,1e-08,2515.7,2515.6,29.21674673]
[1751707744088,1e-08,2515.7,2515.6,21.21174673]
[1751707744288,1e-08,2515.7,2515.6,29.21774673]
[1751707745690,1e-08,2515.7,2515.6,24.47774673]
[1751707748392,1e-08,2515.7,2515.6,25.24444673]
[1751707751588,1e-08,2515.7,2515.6,29.98444673]
[1751707760982,0.0436113,2516.2,2515.6,29.98444673]
[1751707760983,1e-08,2516.2,2516.1,5.34210483]
[1751707761177,1e-08,2516.2,2516.1,24.31851268]
[1751707761397,1e-08,2516.2,2516.1,24.47716864]
[1751707763374,1e-08,2516.2,2516.1,29.21716864]
[1751707766398,1e-08,2516.2,2516.1,28.39946864]
[1751707767881,1e-08,2516.2,2516.1,20.39446864]
[1751707768080,1e-08,2516.2,2516.1,28.39946864]
[1751707770486,1e-08,2516.2,2516.1,19.84446864]
[1751707770705,0.81000001,2516.2,2516.1,27.84846864]
[1751707774915,0.81000001,2516.2,2516.1,26.91680483]
[1751707775217,0.81000001,2516.2,2516.1,22.17680483]
[1751707775713,0.81000001,2516.2,2516.1,10.1984]
[1751707775919,0.81000001,2516.2,2516.1,22.17680483]
[1751707781091,0.81000001,2516.2,2516.1,18.2024]
[1751707781892,1.18248473,2516.2,2516.1,18.2024]
[1751707782520,1.18248473,2516.2,2516.1,10.1984]
[1751707782701,1.18248473,2516.2,2516.1,18.2034]
[1751707782904,1.18248473,2516.2,2516.1,10.1984]
[1751707783104,0.81000001,2516.2,2516.1,10.1984]
[1751707783421,1.18244357,2516.2,2516.1,8.2034]
[1751707784123,1.18244304,2516.2,2516.1,8.2034]
[1751707787004,1.18220437,2516.2,2516.1,8.2034]
[1751707790506,1.15220437,2516.2,2516.1,0.1984]
[1751707790810,1.15220437,2516.2,2516.1,8.2054]
[1751707796135,1.15220437,2516.2,2516.1,0.1984]
[1751707796437,1.15220437,2516.2,2516.1,8.2044]
[1751707798737,0.78000001,2516.2,2516.1,8.2044]
[1751707799033,1.15201045,2516.2,2516.1,8.2044]
[1751707799632,5.12625733,2516.2,2516.1,0.1984]
[1751707799832,0.8156,2516.0,2515.6,3.97511871]
[1751707800035,0.37201044,2515.9,2515.7,8.006]
[1751707800335,3.97440753,2516.1,2515.5,4.74]
[1751707800336,0.37201044,2515.8,2515.5,4.74]
[1751707800511,4.34714364,2515.7,2515.6,0.1984]
[1751707800707,5.16274364,2515.7,2515.6,8.2064]
[1751707801042,3.97559664,2515.4,2514.7,3.97656347]
[1751707801334,0.37201044,2515.7,2514.8,8.008]
[1751707801335,0.8156,2515.1,2514.8,8.008]
[1751707801533,0.8156,2515.1,2514.7,4.02011069]
[1751707801741,0.8156,2515.1,2515.0,0.1984]
[1751707801932,1.18684735,2515.1,2515.0,0.1984]
[1751707802336,0.8156,2515.1,2515.0,0.1984]
[1751707803819,0.8156,2515.5,2515.0,1.41686696]
[1751707804024,0.37064079,2515.4,2515.1,8.009]
[1751707804250,0.37064079,2515.4,2515.2,0.1984]
[1751707805215,3.9756689,2515.3,2515.2,0.1984]
[1751707805414,3.97583957,2515.2,2515.1,8.013]
[1751707805643,0.8156,2515.3,2515.1,8.2114]
[1751707807744,4.79140727,2515.3,2515.1,8.2114]
[1751707807939,0.8156,2515.3,2515.1,8.2114]
[1751707810120,4.79127004,2515.3,2515.1,8.2114]
[1751707810321,0.8156,2515.3,2515.1,8.2114]
[1751707810939,4.79128279,2515.3,2515.1,8.2124]
[1751707811617,0.8156,2515.3,2515.1,8.2124]
[1751707820437,4.79128389,2515.3,2515.1,8.2124]
[1751707820622,0.8156,2515.3,2515.1,8.2124]
[1751707821835,0.8156,2515.3,2515.1,0.1984]
[1751707822035,0.8156,2515.3,2515.1,8.2084]
[1751707824154,0.37022369,2515.2,2515.1,8.2084]
[1751707824451,0.37022369,2515.2,2515.1,0.1984]
[1751707824452,0.37022457,2515.2,2515.1,0.1984]
[1751707824656,0.37022457,2515.2,2515.1,4.17438505]
[1751707824835,0.37022457,2515.4,2515.1,4.17438505]
[1751707825035,0.37022457,2515.3,2515.1,4.17438505]
[1751707825256,0.37022457,2515.2,2515.1,4.17438505]
[1751707825455,0.8214,2515.5,2515.1,4.17438505]
[1751707825621,0.37044487,2515.4,2515.1,4.17438505]
[1751707825826,0.37044487,2515.4,2515.1,0.1984]
[1751707826125,0.37044487,2515.3,2515.1,0.1984]
[1751707826352,4.79676275,2515.5,2515.1,0.1984]
[1751707826353,0.37044487,2515.2,2515.1,0.1984]
[1751707827668,0.37044487,2515.4,2515.1,0.1984]
[1751707827871,0.37044487,2515.3,2515.1,0.1984]
[1751707828042,0.37044487,2515.2,2515.1,0.1984]
[1751707828743,0.37044487,2515.2,2515.1,4.17438505]
[1751707830051,0.37044487,2515.2,2515.1,5.91125826]
[1751707831460,0.37044487,2515.2,2515.1,5.87149841]
[1751707834457,0.37044487,2515.2,2515.1,4.17438505]
[1751707834939,0.37044487,2515.2,2515.1,0.1984]
[1751707835143,0.37044487,2515.2,2515.1,8.2074]
[1751707841443,1.16634487,2515.2,2515.1,4.17438505]
[1751707841649,3.97645936,2514.8,2514.7,0.04361129]
[1751707841844,5.54045017,2514.8,2514.7,0.04361129]
[1751707844765,1.16634487,2514.8,2514.7,0.04361129]
[1751707846280,0.37044487,2514.8,2514.7,0.04361129]
[1751707851574,0.37044487,2514.8,2514.7,0.24201129]
[1751707851869,4.80549111,2515.4,2514.9,3.97630124]
[1751707852075,0.37097503,2515.3,2515.0,0.1984]
[1751707852379,0.37097503,2515.2,2515.0,0.1984]
[1751707852542,6.68527854,2515.4,2515.0,0.1984]
[1751707852543,0.37097503,2515.1,2515.0,0.1984]
[1751707852747,0.37097503,2515.1,2515.0,4.17454314]
[1751707853049,0.37097503,2515.1,2515.0,4.96954314]
[1751707853386,0.37097503,2515.1,2515.0,6.6674253]
[1751707853595,0.37097503,2515.1,2515.0,2.73104359]
[1751707853754,0.37100901,2515.6,2515.0,2.73104359]
[1751707854091,10.8292,2515.7,2515.3,4.1739321]
[1751707854092,0.37100901,2515.5,2515.3,4.1739321]
[1751707854270,0.37100901,2515.4,2515.3,12.2079321]
[1751707854653,0.37100901,2515.4,2515.3,8.2324]
[1751707854859,0.37100901,2515.4,2515.3,12.2080689]
[1751707855087,0.37100901,2515.4,2515.3,8.2324]
[1751707856762,0.37100901,2515.4,2515.3,12.2080689]
[1751707857897,0.37100901,2515.4,2515.3,8.2324]
[1751707859781,0.37098101,2515.4,2515.3,8.2324]
[1751707860103,0.37098101,2515.6,2515.3,8.2324]
[1751707860309,0.37098101,2515.5,2515.3,8.2324]
[1751707860509,0.37098101,2515.4,2515.3,8.2324]
[1751707861611,0.37098101,2515.6,2515.3,8.2324]
[1751707861817,0.37098101,2515.5,2515.3,8.2324]
[1751707861986,0.37098101,2515.4,2515.3,8.2324]
[1751707862582,0.37098101,2515.6,2515.3,8.2324]
[1751707862905,0.37098101,2515.5,2515.3,12.20802149]
[1751707863122,10.8292,2515.7,2515.4,3.97551085]
[1751707863315,0.37098592,2515.6,2515.5,8.028]
[1751707863684,0.37098592,2515.6,2515.5,12.00335281]
[1751707863879,0.37098592,2515.6,2515.5,13.88076827]
[1751707864080,0.37098592,2515.6,2515.5,13.88075754]
[1751707864287,0.37098592,2515.6,2515.5,9.90541546]
[1751707864511,2.7703,2516.1,2515.7,3.97492754]
[1751707864709,0.37112241,2516.0,2515.8,8.028]
[1751707864898,0.37112241,2515.9,2515.8,8.2264]
[1751707866017,0.37112241,2516.0,2515.8,8.2264]
[1751707866221,0.37112241,2515.9,2515.8,12.20126932]
[1751707866403,0.37112241,2516.0,2515.8,12.20126932]
[1751707866609,0.37112241,2516.0,2515.8,8.2264]
[1751707867024,0.37112241,2516.0,2515.9,3.97472077]
[1751707867226,0.37112241,2516.0,2515.9,4.17312077]
[1751707867427,0.37078957,2516.0,2515.9,4.17312077]
[1751707867949,0.37078973,2516.0,2515.9,4.17312077]
[1751707868411,0.370691,2516.3,2516.1,3.97428088]
[1751707868611,10.9493,2516.5,2516.1,3.97428088]
[1751707868612,10.9493,2516.5,2516.2,8.027]
[1751707868807,0.37066277,2516.4,2516.2,12.00117886]
[1751707869135,0.37066277,2516.3,2516.2,9.62455388]
[1751707869344,15.9266949,2516.6,2516.3,0.1984]
[1751707869636,0.37049666,2516.5,2516.3,0.1984]
[1751707870141,4.34429628,2516.5,2516.3,0.1984]
[1751707870343,0.37049666,2516.4,2516.3,0.1984]
[1751707870712,0.37035362,2516.5,2516.3,0.1984]
[1751707870920,0.37035362,2516.4,2516.3,0.1984]
[1751707871321,0.37035362,2516.5,2516.3,0.1984]
[1751707871612,0.37035362,2516.4,2516.3,4.17248894]
[1751707871806,0.37035362,2516.5,2516.3,8.2264]
[1751707872104,0.37035362,2516.4,2516.3,8.2264]
[1751707875349,0.37035362,2516.6,2516.3,13.50281569]
[1751707875515,0.37035362,2516.6,2516.4,3.97385067]
[1751707875720,0.37035362,2516.6,2516.5,8.029]
[1751707876144,0.37035362,2516.6,2516.5,8.2274]
[1751707879249,0.04361131,2516.7,2516.5,8.2274]
[1751707879469,0.41399677,2516.7,2516.5,8.2274]
[1751707880350,0.41399677,2516.7,2516.5,12.20114683]
[1751707880660,0.37038546,2516.6,2516.5,13.16550162]
[1751707880839,0.04361131,2516.7,2516.5,13.16550162]
[1751707880840,0.04361131,2516.7,2516.6,4.17201519]
[1751707881642,0.04361131,2516.7,2516.6,0.1984]
[1751707881968,0.04361131,2516.7,2516.6,4.17201519]
[1751707885177,0.04361131,2516.7,2516.6,0.1984]
[1751707887778,0.04361131,2516.7,2516.6,4.17201519]
[1751707887984,0.04361131,2516.7,2516.6,5.32792002]
[1751707890502,0.04361131,2516.7,2516.6,0.1984]
[1751707890695,0.04361131,2516.7,2516.6,4.17201519]
[1751707898904,0.40830046,2516.7,2516.6,4.17201519]
[1751707899982,0.04361131,2516.7,2516.6,4.17201519]
[1751707900589,0.41132567,2516.7,2516.6,4.17201519]
[1751707900786,0.04361131,2516.7,2516.6,4.17201519]
[1751707901409,0.41132567,2516.7,2516.6,4.17201519]
[1751707901603,0.04361131,2516.7,2516.6,4.17201519]
[1751707902298,0.41132567,2516.7,2516.6,4.17201519]
[1751707902490,0.04361131,2516.7,2516.6,4.17201519]
[1751707903219,0.41132567,2516.7,2516.6,4.17201519]
[1751707903512,0.41132567,2516.7,2516.6,5.87073386]
[1751707903897,0.04361131,2516.7,2516.6,5.87073386]
[1751707904092,0.04361131,2516.7,2516.6,5.91047001]
[1751707905513,0.41132567,2516.7,2516.6,5.91047001]
[1751707905712,0.04361131,2516.7,2516.6,5.91047001]
[1751707906526,0.41132567,2516.7,2516.6,5.91047001]
[1751707907030,0.04361131,2516.7,2516.6,5.91047001]
[1751707907944,0.41132567,2516.7,2516.6,5.91047001]
[1751707908107,0.04361131,2516.7,2516.6,7.24723386]
[1751707911323,0.04361131,2516.7,2516.6,11.98723386]
[1751707912931,1e-08,2516.7,2516.6,21.98723386]
[1751707913352,1e-08,2516.7,2516.6,31.95023386]
[1751707915052,1e-08,2516.7,2516.6,21.98723386]
[1751707915253,1e-08,2516.7,2516.6,30.00523386]
[1751707928459,1e-08,2516.7,2516.6,29.99723386]
[1751707931779,1e-08,2516.7,2516.6,5.87073386]
[1751707932079,1e-08,2516.7,2516.6,12.18101519]
[1751707936451,1e-08,2516.7,2516.6,12.73101519]
[1751707937581,1e-08,2516.7,2516.6,13.48951519]
[1751707940884,1e-08,2516.7,2516.6,18.22951519]
[1751707943383,1e-08,2516.7,2516.6,28.22951519]
[1751707943584,1e-08,2516.7,2516.6,31.44983911]
[1751707963721,1e-08,2516.7,2516.6,23.44083911]
[1751707963922,1e-08,2516.7,2516.6,31.44783911]
[1751707967240,1e-08,2516.7,2516.6,23.44083911]
[1751707967427,1e-08,2516.7,2516.6,31.44783911]
[1751707982475,1e-08,2516.7,2516.6,22.68233911]
[1751707982751,1e-08,2516.7,2516.6,30.68833911]
[1751707983835,1e-08,2516.7,2516.6,22.68233911]
[1751707984023,1e-08,2516.7,2516.6,30.13833911]
[1751707986045,1e-08,2516.7,2516.6,22.13233911]
[1751707986343,1e-08,2516.7,2516.6,30.13833911]
[1751707986735,1e-08,2516.7,2516.6,18.91201519]
[1751707987243,1e-08,2516.7,2516.6,26.91801519]
[1751707988334,1e-08,2516.7,2516.6,22.17801519]
[1751707990350,1e-08,2516.7,2516.6,12.17801519]
[1751707990525,0.77780001,2516.7,2516.6,0.1984]
[1751707990730,1.61520948,2516.7,2516.6,8.2044]
[1751707992959,13.17592663,2516.7,2516.6,0.1984]
[1751707993141,4.74082396,2516.6,2516.3,0.1984]
[1751707993457,1.1295063,2516.5,2516.4,8.007]
[1751707994152,2.08374009,2516.5,2516.3,0.1984]
[1751707994354,2.08374009,2516.5,2516.4,8.007]
[1751707994554,2.44540082,2516.5,2516.4,8.007]
[1751707996058,1.12886073,2516.5,2516.4,8.007]
[1751707997739,1.12886073,2516.5,2516.4,11.98093101]
[1751707998346,1.12886073,2516.5,2516.4,8.007]
[1751707999359,1.12886073,2516.5,2516.4,11.98093101]
[1751707999653,1e-08,2516.7,2516.6,3.97361519]
[1751707999840,1e-08,2516.7,2516.6,11.98161519]
[1751708000157,1e-08,2516.7,2516.6,12.18001519]
[1751708004986,1e-08,2516.7,2516.6,13.79539224]
[1751708005648,1e-08,2516.7,2516.6,14.55829224]
[1751708010284,1e-08,2516.7,2516.6,24.55829224]
[1751708010694,1e-08,2516.7,2516.6,15.10829224]
[1751708014385,1e-08,2516.7,2516.6,5.78739224]
[1751708014569,1e-08,2516.7,2516.6,13.79339224]
[1751708015855,1e-08,2516.7,2516.6,5.78739224]
[1751708016065,1e-08,2516.7,2516.6,13.79339224]
[1751708018381,1e-08,2516.7,2516.6,5.78739224]
[1751708018581,1e-08,2516.7,2516.6,13.79339224]
[1751708022203,1e-08,2516.7,2516.6,15.14879224]
[1751708026717,1e-08,2516.7,2516.6,19.88879224]
[1751708033884,1e-08,2516.7,2516.6,19.08339224]
[1751708038615,1e-08,2516.7,2516.6,14.34339224]
[1751708039292,1e-08,2516.7,2516.6,15.09909224]
[1751708039488,1e-08,2516.7,2516.6,0.1984]
[1751708039724,0.8147,2516.6,2516.3,3.97400969]
[1751708040016,0.8147,2516.6,2516.4,8.011]
[1751708040218,1e-08,2516.7,2515.6,9.47077762]
[1751708040384,0.8147,2516.5,2515.8,3.97487876]
[1751708040584,0.8147,2516.5,2516.2,3.97422774]
[1751708040816,0.8147,2516.5,2516.3,8.012]
[1751708041901,0.35630979,2516.4,2516.3,8.012]
[1751708042516,0.8147,2516.5,2516.3,8.012]
[1751708042819,2.0522579,2516.5,2516.3,8.012]
[1751708043019,0.35611247,2516.4,2516.3,8.012]
[1751708043517,2.0522579,2516.5,2516.3,8.012]
[1751708044823,0.8147,2516.5,2516.3,8.012]
[1751708045020,0.8147,2516.5,2516.3,11.98596068]
[1751708045190,0.8147,2516.5,2516.3,8.012]
[1751708046838,0.8147,2516.5,2516.4,3.97393101]
[1751708047130,1e-08,2516.7,2516.5,3.97366263]
[1751708047302,0.35554823,2516.7,2516.6,11.98561519]
[1751708048326,1e-08,2516.7,2516.6,11.98561519]
[1751708049703,1e-08,2516.7,2516.6,12.18401519]
[1751708051836,0.3716352,2516.7,2516.6,12.18401519]
[1751708052399,1e-08,2516.7,2516.6,12.18401519]
[1751708052932,1e-08,2516.7,2516.6,11.98561519]
[1751708053116,0.3716352,2516.7,2516.6,11.98561519]
[1751708053703,1e-08,2516.7,2516.6,11.98561519]
[1751708054233,1e-08,2516.7,2516.6,13.58155145]
[1751708054433,0.3716352,2516.7,2516.6,13.58155145]
[1751708055134,1e-08,2516.7,2516.6,13.58155145]
[1751708060540,1e-08,2516.7,2516.6,14.33285145]
[1751708061712,1e-08,2516.7,2516.6,14.88285145]
[1751708063045,1e-08,2516.7,2516.6,15.08125145]
[1751708065234,1e-08,2516.7,2516.6,19.82125145]
[1751708069844,1e-08,2516.7,2516.6,29.82125145]
[1751708082285,0.37170608,2517.6,2516.6,29.82125145]
[1751708082286,0.37170608,2517.6,2517.5,3.97219463]
[1751708082578,0.8563113,2517.7,2517.6,3.97203686]
[1751708083086,1.22796926,2517.7,2517.6,3.97203686]
[1751708084501,1.22786517,2517.7,2517.6,3.97203686]
[1751708084702,0.8563113,2517.7,2517.6,3.97203686]
[1751708085418,0.0436113,2517.7,2517.6,4.52203686]
[1751708085624,0.0436113,2517.7,2517.6,13.72602001]
[1751708087514,0.0436113,2517.7,2517.6,13.73102001]
[1751708092728,0.0436113,2517.7,2517.6,13.72902001]
[1751708093631,0.0436113,2517.7,2517.6,14.54812001]
[1751708095430,0.0436113,2517.7,2517.6,14.74652001]
[1751708098427,0.0436113,2517.7,2517.6,6.73652001]
[1751708098735,0.0436113,2517.7,2517.6,13.92542001]
[1751708099327,0.0436113,2517.7,2517.6,14.47542001]
[1751708099533,0.0436113,2517.7,2517.6,15.24412001]
[1751708104850,0.0436113,2517.7,2517.6,13.92442001]
[1751708106952,0.0436113,2517.7,2517.6,5.91742001]
[1751708107117,0.0436113,2517.7,2517.6,12.17743686]
[1751708108248,0.0436113,2517.7,2517.6,12.17843686]
[1751708112556,0.41598566,2517.7,2517.6,12.17843686]
[1751708113350,0.41598364,2517.7,2517.6,12.17843686]
[1751708120037,0.41608861,2517.7,2517.6,12.17843686]
[1751708125861,0.0436113,2517.7,2517.6,12.17843686]
[1751708126037,0.0436113,2517.7,2517.6,13.87125807]
[1751708126366,0.41612218,2517.7,2517.6,13.87125807]
[1751708129468,0.41612218,2517.7,2517.6,12.17843686]
[1751708134578,0.41623886,2517.7,2517.6,12.17843686]
[1751708140051,0.41623886,2517.7,2517.6,22.17843686]
[1751708140354,0.0436113,2517.7,2517.6,22.17843686]
[1751708140674,0.0436113,2517.7,2517.6,22.72843686]
[1751708140972,0.0436113,2517.7,2517.6,25.47832807]
[1751708142282,0.0436113,2517.7,2517.6,30.21832807]
[1751708145380,0.0436113,2517.7,2517.6,22.21032807]
[1751708145569,0.0436113,2517.7,2517.6,30.21332807]
[1751708149781,0.0436113,2517.7,2517.6,29.66332807]
[1751708154167,0.0436113,2517.7,2517.6,24.92332807]
[1751708164398,0.0436113,2517.7,2517.6,30.99062807]
[1751708164778,1e-08,2517.7,2517.6,36.50360268]
[1751708165203,0.0436113,2518.2,2518.1,14.74854816]
[1751708165391,0.0436113,2518.2,2518.1,28.46192277]
[1751708165906,0.0436113,2518.2,2518.1,22.94894816]
[1751708166217,0.0436113,2518.7,2518.6,4.52045977]
[1751708166502,0.0436113,2518.7,2518.6,13.49815977]
[1751708166712,0.0436113,2518.7,2518.6,14.80743908]
[1751708171814,0.0436113,2518.7,2518.6,19.54743908]
[1751708172709,0.0436113,2518.7,2518.6,10.21813908]
[1751708172918,0.0436113,2518.7,2518.6,16.90885977]
[1751708173825,0.0436113,2519.2,2519.1,3.9696717]
[1751708174117,0.0436113,2519.2,2519.1,13.50936841]
[1751708174416,0.0436113,2519.2,2519.1,12.7180717]
[1751708174992,0.0436113,2519.2,2519.1,12.1680717]
[1751708175193,0.0436113,2519.2,2519.1,13.85701915]
[1751708183629,0.0436113,2519.2,2519.1,0.1984]
[1751708183797,0.8323113,2519.2,2519.1,0.1984]
[1751708183994,0.8323113,2519.2,2519.1,8.1964]
[1751708184429,0.8323113,2519.2,2519.1,7.998]
[1751708184630,0.8323113,2519.2,2519.0,0.1984]
[1751708184816,2.08985995,2519.2,2519.1,7.998]
[1751708186508,0.8323113,2519.2,2519.1,7.998]
[1751708188232,0.8323113,2519.2,2519.1,11.9676717]
[1751708188538,0.0436113,2519.2,2519.1,11.9676717]
[1751708188738,0.0436113,2519.2,2519.1,12.1660717]
[1751708193246,0.0436113,2519.2,2519.1,8.1964]
[1751708193652,0.0436113,2519.2,2519.1,0.1984]
[1751708193822,0.0436113,2519.2,2519.1,8.1964]
[1751708195635,0.0436113,2519.2,2518.7,4.74]
[1751708195837,0.8032,2519.1,2519.0,0.1984]
[1751708196041,0.8032,2519.1,2519.0,8.1964]
[1751708196236,0.8032,2519.1,2519.0,0.1984]
[1751708196442,0.8032,2519.1,2519.0,8.1964]
[1751708199472,0.8032,2519.1,2519.0,0.1984]
[1751708199636,5.25450521,2519.1,2519.0,0.1984]
[1751708199839,5.60230589,2519.1,2519.0,8.1964]
[1751708200443,4.79910589,2519.1,2518.7,4.74]
[1751708200632,3.96999442,2518.9,2518.8,7.998]
[1751708200831,5.27502513,2518.9,2518.8,7.998]
[1751708201043,1.30503071,2518.9,2518.8,8.003]
[1751708201277,5.2750176,2518.9,2518.8,8.003]
[1751708202272,1.30503071,2518.9,2518.8,8.003]
[1751708204270,1.30503071,2518.9,2518.5,4.16899074]
[1751708204271,4.77342621,2518.8,2518.5,0.1984]
[1751708204432,5.40107954,2518.8,2518.7,8.002]
[1751708204633,5.7407705,2518.8,2518.7,8.002]
[1751708205532,4.77359494,2518.7,2518.6,8.004]
[1751708205736,14.71164836,2518.7,2518.6,8.004]
[1751708205974,12.88725713,2518.7,2518.6,8.004]
[1751708206358,1.34129096,2518.7,2518.6,8.004]
[1751708206669,0.33969096,2518.7,2518.6,8.004]
[1751708207242,0.33969096,2518.8,2518.6,8.004]
[1751708207455,0.33969096,2518.7,2518.6,8.004]
[1751708208137,1.28869321,2518.8,2518.6,8.004]
[1751708209476,5.25885493,2518.8,2518.6,8.004]
[1751708209770,4.3131505,2518.7,2518.6,8.004]
[1751708209953,11.88872173,2518.7,2518.6,8.004]
[1751708210149,14.47593773,2518.7,2518.6,8.004]
[1751708210345,14.47593773,2518.7,2518.4,0.1984]
[1751708210549,14.13308936,2518.7,2518.6,8.004]
[1751708210880,14.47888501,2518.7,2518.6,8.004]
[1751708211859,10.50858288,2518.7,2518.6,8.004]
[1751708213650,14.47888501,2518.7,2518.6,8.004]
[1751708213857,14.47888501,2518.7,2518.4,0.1984]
[1751708214061,14.13308936,2518.7,2518.4,0.1984]
[1751708214263,14.13308936,2518.7,2518.4,8.2014]
[1751708214771,10.8322,2519.0,2518.4,8.003]
[1751708214991,10.8322,2519.0,2518.6,0.1984]
[1751708214992,0.34571599,2518.9,2518.6,0.1984]
[1751708215144,0.34571599,2518.9,2518.6,4.16879269]
[1751708215654,0.34571599,2518.9,2518.7,8.004]
[1751708215855,1.92848708,2518.9,2518.7,8.004]
[1751708216054,0.34571599,2518.8,2518.7,8.004]
[1751708216457,0.34571599,2518.9,2518.7,8.004]
[1751708216658,0.34571599,2518.8,2518.7,8.004]
[1751708216872,0.34571599,2518.9,2518.7,8.004]
[1751708217052,0.34571599,2518.9,2518.7,11.97429019]
[1751708217749,0.34571599,2518.9,2518.7,8.004]
[1751708219583,13.47406231,2518.9,2518.7,8.004]
[1751708219785,0.34571599,2518.8,2518.7,8.004]
[1751708220892,0.34571599,2518.8,2518.6,0.1984]
[1751708221056,0.8322,2518.7,2518.6,8.005]
[1751708221673,0.1984,2518.8,2518.6,8.005]
[1751708221888,2.35845989,2518.8,2518.6,8.005]
[1751708222090,2.01129032,2518.8,2518.6,8.005]
[1751708223188,0.34647094,2518.7,2518.6,8.005]
[1751708225092,4.01319702,2519.2,2518.7,3.97025003]
[1751708225294,0.34659197,2519.1,2518.9,0.1984]